bitfinex/quotes_ETHUSD_20230110
["timestamp","ask_amount","ask_price","bid_price","bid_amount"]
[1673345774977,1.68962786,1329.6,1329.5,23.16303608]
[1673345775580,7.73999008,1329.6,1329.5,23.16303608]
[1673345775832,5.4912885,1329.6,1329.5,23.16303608]
[1673345777146,5.4912885,1329.6,1329.5,0.16303608]
[1673345777400,5.4912885,1329.6,1329.5,23.10198007]
[1673345777616,13.0123385,1329.6,1329.5,0.16303608]
[1673345777804,5.4912885,1329.6,1329.5,0.10198007]
[1673345779359,5.4912885,1329.6,1329.5,12.10198007]
[1673345779569,5.4912885,1329.6,1329.5,12.16303608]
[1673345779812,5.4912885,1329.6,1329.5,0.16303608]
[1673345780002,5.4912885,1329.6,1329.5,0.10198007]
[1673345780562,7.74399008,1329.6,1329.5,21.10198007]
[1673345780726,7.74399008,1329.6,1329.5,21.16303608]
[1673345780936,5.4912885,1329.6,1329.5,21.16303608]
[1673345781402,5.4912885,1329.6,1329.5,0.16303608]
[1673345781721,7.74399008,1329.6,1329.5,25.10198007]
[1673345781881,7.74399008,1329.6,1329.5,10.16303608]
[1673345782347,5.4912885,1329.6,1329.5,0.16303608]
[1673345782507,7.74399008,1329.6,1329.5,0.10198007]
[1673345782720,5.4912885,1329.6,1329.5,24.10198007]
[1673345782947,5.4912885,1329.6,1329.5,24.16303608]
[1673345782948,7.74399008,1329.6,1329.5,24.16303608]
[1673345784933,7.74399008,1329.6,1329.5,0.16303608]
[1673345785145,7.74399008,1329.6,1329.5,0.10198007]
[1673345785661,7.74399008,1329.6,1329.5,14.10198007]
[1673345785870,7.74399008,1329.6,1329.5,14.16303608]
[1673345786452,15.26504008,1329.6,1329.5,24.16303608]
[1673345786665,15.26504008,1329.6,1329.5,0.16303608]
[1673345786858,18.75298307,1329.6,1329.5,0.10198007]
[1673345787390,18.75298307,1329.6,1329.5,0.09940534]
[1673345792108,11.23193307,1329.6,1329.5,0.09940534]
[1673345792333,11.23193307,1329.6,1329.5,16.09940534]
[1673345792553,11.23193307,1329.6,1329.5,16.16046135]
[1673345792907,11.23193307,1329.6,1329.5,0.16046135]
[1673345793159,11.23193307,1329.6,1329.5,0.09940534]
[1673345795906,11.23394076,1329.6,1329.5,22.09940534]
[1673345796069,11.23394076,1329.6,1329.5,22.16046135]
[1673345796417,9.54230521,1329.6,1329.5,0.16046135]
[1673345796624,9.54230521,1329.6,1329.5,0.09940534]
[1673345796839,9.54230521,1329.6,1329.5,9.09940534]
[1673345797162,9.54230521,1329.6,1329.5,9.16046135]
[1673345797556,9.54230521,1329.6,1329.5,0.16046135]
[1673345797762,9.54230521,1329.6,1329.5,0.09940534]
[1673345798003,12.35440502,1329.6,1329.5,0.09940534]
[1673345800900,19.87545502,1329.6,1329.5,0.09940534]
[1673345801106,12.35440502,1329.6,1329.5,0.09940534]
[1673345805210,12.35086341,1329.6,1329.5,0.09940534]
[1673345806421,9.5387636,1329.6,1329.5,24.09940534]
[1673345806589,9.5387636,1329.6,1329.5,24.16046135]
[1673345807012,9.5387636,1329.6,1329.5,0.16046135]
[1673345807248,9.5387636,1329.6,1329.5,0.09940534]
[1673345807575,9.5387636,1329.6,1329.5,14.09940534]
[1673345807749,12.35086341,1329.6,1329.5,14.16046135]
[1673345807962,12.35086341,1329.6,1329.5,23.16046135]
[1673345808149,9.5387636,1329.6,1329.5,0.16046135]
[1673345808364,9.5387636,1329.6,1329.5,0.09940534]
[1673345809667,12.35086341,1329.6,1329.5,0.09940534]
[1673345811770,12.35086341,1329.6,1329.5,10.09940534]
[1673345811994,12.35086341,1329.6,1329.5,10.16046135]
[1673345812354,12.35086341,1329.6,1329.5,0.16046135]
[1673345812602,12.35086341,1329.6,1329.5,0.09940534]
[1673345814357,9.5387636,1329.6,1329.5,0.09940534]
[1673345817340,19.87619631,1329.6,1329.5,0.09940534]
[1673345817533,19.87619631,1329.6,1329.5,7.09940534]
[1673345817719,19.87619631,1329.6,1329.5,7.16046135]
[1673345818275,19.87619631,1329.6,1329.5,0.16046135]
[1673345818276,12.35514631,1329.6,1329.5,0.16046135]
[1673345818487,12.35514631,1329.6,1329.5,0.09940534]
[1673345820177,9.5430465,1329.6,1329.5,0.09940534]
[1673345820554,9.5430465,1329.6,1329.5,16.0]
[1673345820762,9.5430465,1329.6,1329.5,0.06105601]
[1673345820969,9.5430465,1329.6,1329.4,2.86106567]
[1673345821183,6.61881288,1329.5,1329.3,25.89644575]
[1673345821432,3.80166064,1329.5,1329.4,33.866621]
[1673345821648,6.61882446,1329.5,1329.4,36.72768667]
[1673345821889,4.93012612,1329.5,1329.4,36.72768667]
[1673345822024,3.79766064,1329.5,1329.4,36.72768667]
[1673345822242,6.61882409,1329.5,1329.4,36.72768667]
[1673345822492,3.80166064,1329.5,1329.4,36.72768667]
[1673345822704,6.61882384,1329.5,1329.4,36.72768667]
[1673345822901,3.80166064,1329.5,1329.4,36.72768667]
[1673345823111,3.79766064,1329.5,1329.4,36.72768667]
[1673345823281,6.6187842,1329.5,1329.4,4.72768667]
[1673345823500,3.80166064,1329.5,1329.4,1.866621]
[1673345823751,6.61877252,1329.5,1329.4,1.866621]
[1673345823973,5.49435462,1329.5,1329.4,1.866621]
[1673345824280,6.62281687,1329.5,1329.4,1.866621]
[1673345824457,3.80166064,1329.5,1329.4,1.866621]
[1673345824652,5.49038001,1329.5,1329.4,1.866621]
[1673345824863,5.49438001,1329.5,1329.4,1.866621]
[1673345825072,6.62282814,1329.5,1329.4,1.866621]
[1673345825324,3.80166064,1329.5,1329.4,1.866621]
[1673345825534,3.79766064,1329.5,1329.4,33.866621]
[1673345825748,6.61882249,1329.5,1329.4,36.72768667]
[1673345825970,7.75139125,1329.5,1329.4,33.92767701]
[1673345826124,7.75139125,1329.5,1329.4,10.92767701]
[1673345826335,7.75139125,1329.5,1329.4,13.92767701]
[1673345826986,5.49440677,1329.5,1329.4,13.92767701]
[1673345829593,5.49440677,1329.5,1329.4,1.92767701]
[1673345829810,5.49440677,1329.5,1329.4,13.866621]
[1673345830152,7.75139125,1329.5,1329.4,13.92767701]
[1673345830326,7.75139125,1329.5,1329.4,12.06105601]
[1673345830538,7.75139125,1329.5,1329.4,9.06105601]
[1673345830987,11.07032536,1329.5,1329.4,9.06105601]
[1673345831378,8.81334088,1329.5,1329.4,10.92775892]
[1673345831583,11.07032536,1329.5,1329.4,9.06105601]
[1673345832892,8.81334088,1329.5,1329.4,9.06105601]
[1673345833056,8.81334088,1329.5,1329.4,10.92774474]
[1673345833508,8.81334088,1329.5,1329.4,9.06105601]
[1673345834067,8.81334088,1329.5,1329.4,0.06105601]
[1673345834258,8.81334088,1329.5,1329.3,9.16418711]
[1673345834436,4.92593607,1329.4,1329.3,9.16418711]
[1673345834646,3.79766064,1329.4,1329.3,3.05225549]
[1673345834891,4.92595543,1329.4,1329.3,2.99119948]
[1673345835099,3.79766064,1329.4,1329.3,20.99119948]
[1673345835290,4.92595782,1329.4,1329.3,23.85230303]
[1673345835501,3.79766064,1329.4,1329.3,31.37505303]
[1673345835787,4.92594672,1329.4,1329.3,31.37505303]
[1673345835968,4.92595414,1329.4,1329.3,31.37505303]
[1673345836281,4.92594658,1329.4,1329.3,31.37505303]
[1673345836434,4.92594652,1329.4,1329.3,31.37505303]
[1673345836639,3.79766064,1329.4,1329.3,31.37505303]
[1673345837094,4.92595781,1329.4,1329.3,31.37505303]
[1673345837306,3.79766064,1329.4,1329.3,31.37505303]
[1673345837733,4.92596652,1329.4,1329.3,31.37505303]
[1673345837944,3.79766064,1329.4,1329.3,31.37505303]
[1673345838486,3.79766064,1329.4,1329.3,22.72777727]
[1673345838677,4.92588611,1329.4,1329.3,22.72777727]
[1673345839008,3.79766064,1329.4,1329.3,38.89780303]
[1673345839167,3.79766064,1329.4,1329.3,31.37505303]
[1673345839377,4.92585754,1329.4,1329.3,28.57500549]
[1673345839587,3.79766064,1329.4,1329.3,28.57500549]
[1673345839852,4.92584216,1329.4,1329.3,28.57500549]
[1673345840160,4.92584202,1329.4,1329.3,28.57500549]
[1673345840319,3.79766064,1329.4,1329.3,28.57500549]
[1673345840526,4.92583856,1329.4,1329.3,28.57500549]
[1673345840781,3.79766064,1329.4,1329.3,28.57500549]
[1673345841215,4.92582985,1329.4,1329.3,28.57500549]
[1673345841421,3.79766064,1329.4,1329.3,28.57500549]
[1673345842077,4.92581487,1329.4,1329.3,21.05225549]
[1673345842375,4.9258172,1329.4,1329.3,21.05225549]
[1673345842686,4.9258055,1329.4,1329.3,34.97322973]
[1673345842853,3.79766064,1329.4,1329.3,43.62050549]
[1673345843063,3.79766064,1329.4,1329.3,46.42055303]
[1673345845382,2.88625899,1329.5,1329.3,46.42055303]
[1673345845600,7.74598693,1329.5,1329.4,4.66672126]
[1673345845793,6.62191963,1329.5,1329.4,4.66672126]
[1673345846004,7.74998635,1329.5,1329.4,19.66672126]
[1673345846249,7.74998617,1329.5,1329.4,19.72777727]
[1673345846460,6.62191963,1329.5,1329.4,27.24996727]
[1673345846632,6.62191963,1329.5,1329.4,34.77215727]
[1673345846843,6.62191963,1329.5,1329.4,44.89668303]
[1673345847102,2.82425899,1329.5,1329.4,42.7851152]
[1673345847314,2.82025899,1329.5,1329.4,35.2629252]
[1673345847627,3.94820684,1329.5,1329.4,26.72777727]
[1673345847840,2.82025899,1329.5,1329.4,23.92772973]
[1673345848058,3.94825251,1329.5,1329.4,23.92772973]
[1673345848208,5.64028019,1329.5,1329.4,23.92772973]
[1673345848423,2.82425899,1329.5,1329.4,23.92772973]
[1673345848639,2.82025899,1329.5,1329.4,23.92772973]
[1673345848880,5.64030084,1329.5,1329.4,7.92772973]
[1673345849087,5.6443006,1329.5,1329.4,7.92772973]
[1673345849419,5.64430042,1329.5,1329.4,13.92772973]
[1673345849631,2.82425899,1329.5,1329.4,13.92772973]
[1673345849824,4.51226744,1329.5,1329.4,13.92772973]
[1673345850005,5.64029194,1329.5,1329.4,13.92772973]
[1673345850219,2.82425899,1329.5,1329.4,13.92772973]
[1673345850470,2.82025899,1329.5,1329.4,13.92772973]
[1673345850631,5.64032899,1329.5,1329.4,12.06105601]
[1673345850846,5.64432899,1329.5,1329.4,13.92771991]
[1673345851291,5.64432899,1329.5,1329.4,12.06105601]
[1673345852260,4.51630099,1329.5,1329.4,12.06105601]
[1673345852473,4.51230099,1329.5,1329.4,12.06105601]
[1673345852787,12.03392099,1329.5,1329.4,12.06105601]
[1673345852959,12.03792099,1329.5,1329.4,12.06105601]
[1673345853169,13.1659724,1329.5,1329.4,12.06105601]
[1673345853612,10.34587899,1329.5,1329.4,13.9277122]
[1673345853997,5.64435471,1329.5,1329.4,13.9277122]
[1673345854209,5.64435456,1329.5,1329.4,13.9277122]
[1673345854418,4.51631628,1329.5,1329.4,1.9277122]
[1673345854731,8.65726622,1329.5,1329.4,1.86665619]
[1673345854981,8.66125738,1329.5,1329.3,2.99118195]
[1673345855175,2.82425899,1329.5,1329.4,1.86665619]
[1673345855401,2.82025899,1329.5,1329.4,1.86665619]
[1673345855589,5.64035286,1329.5,1329.3,2.99118195]
[1673345855786,2.82425899,1329.5,1329.4,1.86665619]
[1673345855993,8.48801083,1329.5,1329.3,2.99118195]
[1673345856203,2.82425899,1329.5,1329.3,2.99118195]
[1673345856426,2.82025899,1329.5,1329.3,2.99118195]
[1673345856621,5.64034969,1329.5,1329.3,2.99118195]
[1673345856853,5.64434946,1329.5,1329.4,12.0]
[1673345857196,3.95229462,1329.5,1329.4,1.9277122]
[1673345857423,4.51231227,1329.5,1329.4,23.86665619]
[1673345857721,4.51228469,1329.5,1329.4,23.9277122]
[1673345857884,3.94827607,1329.5,1329.4,23.9277122]
[1673345858098,3.94827601,1329.5,1329.4,23.9277122]
[1673345858340,4.51228459,1329.5,1329.4,23.9277122]
[1673345858531,4.51228533,1329.5,1329.4,23.9277122]
[1673345858746,3.94827635,1329.5,1329.4,23.9277122]
[1673345858965,3.94827629,1329.5,1329.4,23.9277122]
[1673345859192,2.82025899,1329.5,1329.4,23.9277122]
[1673345859399,3.94827121,1329.5,1329.4,23.9277122]
[1673345859740,2.82025899,1329.5,1329.4,23.9277122]
[1673345859937,3.94826404,1329.5,1329.4,23.9277122]
[1673345860091,3.94826151,1329.5,1329.4,23.9277122]
[1673345860305,2.82025899,1329.5,1329.4,23.9277122]
[1673345860526,4.51228193,1329.5,1329.4,23.9277122]
[1673345860876,4.5122966,1329.5,1329.4,23.9277122]
[1673345861093,4.51229656,1329.5,1329.4,23.9277122]
[1673345861277,3.94828401,1329.5,1329.4,23.9277122]
[1673345861497,5.6403214,1329.5,1329.4,23.9277122]
[1673345861676,4.51629663,1329.5,1329.4,23.9277122]
[1673345861881,7.74594464,1329.5,1329.4,23.9277122]
[1673345862126,6.62191963,1329.5,1329.4,23.9277122]
[1673345862338,8.31395704,1329.5,1329.4,23.9277122]
[1673345862561,9.44198193,1329.5,1329.4,23.9277122]
[1673345862720,7.74996414,1329.5,1329.4,23.9277122]
[1673345863066,6.62191963,1329.5,1329.4,23.9277122]
[1673345863523,9.44200429,1329.5,1329.4,23.9277122]
[1673345863663,6.62191963,1329.5,1329.4,23.9277122]
[1673345864109,9.4420338,1329.5,1329.4,23.9277122]
[1673345864448,12.25574979,1329.5,1329.4,23.9277122]
[1673345864667,7.7499253,1329.5,1329.4,23.9277122]
[1673345864816,7.74992524,1329.5,1329.4,23.9277122]
[1673345865032,7.7499252,1329.5,1329.4,23.9277122]
[1673345865284,6.62191963,1329.5,1329.4,23.9277122]
[1673345865603,8.87793073,1329.5,1329.4,23.9277122]
[1673345865814,8.87793072,1329.5,1329.4,23.9277122]
[1673345866129,8.8779307,1329.5,1329.4,23.9277122]
[1673345866442,8.87793063,1329.5,1329.4,23.9277122]
[1673345866623,8.87792039,1329.5,1329.4,23.9277122]
[1673345866830,7.74992518,1329.5,1329.4,23.9277122]
[1673345867063,7.74992518,1329.5,1329.4,31.4499022]
[1673345867308,8.8779204,1329.5,1329.4,34.24994974]
[1673345867603,7.74992518,1329.5,1329.4,34.24994974]
[1673345868021,8.8779001,1329.5,1329.4,34.24994974]
[1673345868337,8.8779001,1329.5,1329.4,26.72775974]
[1673345868338,7.74992518,1329.5,1329.4,26.72775974]
[1673345868546,8.87786556,1329.5,1329.4,34.24994974]
[1673345868863,8.87778889,1329.5,1329.4,34.24994974]
[1673345869025,8.87778884,1329.5,1329.4,34.24994974]
[1673345869236,7.74992518,1329.5,1329.4,34.24994974]
[1673345869479,8.87778879,1329.5,1329.4,34.24994974]
[1673345869711,8.87778877,1329.5,1329.4,34.24994974]
[1673345870014,8.87778876,1329.5,1329.4,34.24994974]
[1673345870237,3.90226454,1329.5,1329.4,26.72775974]
[1673345870389,3.90226454,1329.5,1329.4,27.63386361]
[1673345870390,5.02612816,1329.5,1329.4,27.63386361]
[1673345870600,3.90226454,1329.5,1329.4,27.63386361]
[1673345870821,5.02608416,1329.5,1329.4,27.63386361]
[1673345871019,5.03009911,1329.5,1329.4,27.63386361]
[1673345871230,3.90226454,1329.5,1329.4,27.63386361]
[1673345871440,5.02609907,1329.5,1329.4,27.63386361]
[1673345871650,5.03009906,1329.5,1329.4,27.63386361]
[1673345871923,3.90226454,1329.5,1329.4,27.63386361]
[1673345872090,5.02609904,1329.5,1329.4,27.63386361]
[1673345872283,3.90226454,1329.5,1329.4,27.63386361]
[1673345872498,3.89826454,1329.5,1329.4,27.63386361]
[1673345872708,5.02609757,1329.5,1329.4,27.63386361]
[1673345872907,5.03010008,1329.5,1329.4,27.63386361]
[1673345873121,5.03010009,1329.5,1329.4,27.63386361]
[1673345873377,3.90226454,1329.5,1329.4,27.63386361]
[1673345873604,3.89826454,1329.5,1329.4,27.63386361]
[1673345873803,5.02610009,1329.5,1329.4,27.63386361]
[1673345874112,7.28577117,1329.5,1329.4,27.63386361]
[1673345874329,8.41360709,1329.5,1329.4,27.63386361]
[1673345874488,7.28577136,1329.5,1329.4,27.63386361]
[1673345874699,8.41359122,1329.5,1329.4,27.63386361]
[1673345874944,8.41359129,1329.5,1329.4,27.63386361]
[1673345875151,8.41359109,1329.5,1329.4,27.63386361]
[1673345875366,7.28577136,1329.5,1329.4,27.63386361]
[1673345875553,8.41358861,1329.5,1329.4,27.63386361]
[1673345875765,7.28577136,1329.5,1329.4,23.9277122]
[1673345877117,8.41357381,1329.5,1329.4,23.9277122]
[1673345877348,7.28577136,1329.5,1329.4,23.9277122]
[1673345877578,8.41357383,1329.5,1329.4,23.9277122]
[1673345877758,7.28577136,1329.5,1329.4,23.9277122]
[1673345877968,8.41357387,1329.5,1329.4,23.9277122]
[1673345878184,7.28577136,1329.5,1329.4,23.9277122]
[1673345878375,8.41357645,1329.5,1329.4,23.9277122]
[1673345878743,8.41369546,1329.5,1329.4,23.9277122]
[1673345878909,7.28577136,1329.5,1329.4,23.9277122]
[1673345879123,8.41369544,1329.5,1329.4,23.9277122]
[1673345879328,7.28577136,1329.5,1329.4,23.9277122]
[1673345879829,8.41369551,1329.5,1329.4,23.9277122]
[1673345879952,8.41368551,1329.5,1329.4,23.9277122]
[1673345880163,7.28577136,1329.5,1329.4,23.9277122]
[1673345880375,8.41368046,1329.5,1329.4,23.9277122]
[1673345880613,7.28577136,1329.5,1329.4,26.72775974]
[1673345881064,7.28577136,1329.5,1329.4,23.9277122]
[1673345882275,8.41372285,1329.5,1329.4,23.9277122]
[1673345882482,8.41372541,1329.5,1329.4,23.9277122]
[1673345882689,8.99898944,1329.5,1329.4,23.9277122]
[1673345883340,10.12703291,1329.5,1329.4,23.9277122]
[1673345883553,8.99898944,1329.5,1329.4,23.9277122]
[1673345883754,10.12703299,1329.5,1329.4,23.9277122]
[1673345883969,8.99898944,1329.5,1329.4,23.9277122]
[1673345884479,10.12703524,1329.5,1329.4,23.9277122]
[1673345884696,10.12703225,1329.5,1329.4,23.9277122]
[1673345884919,8.99898944,1329.5,1329.4,23.9277122]
[1673345885671,10.12703221,1329.5,1329.4,23.9277122]
[1673345885898,10.12703222,1329.5,1329.4,23.9277122]
[1673345886233,11.25508246,1329.5,1329.4,23.9277122]
[1673345886436,10.12703222,1329.5,1329.4,23.9277122]
[1673345886596,10.12703222,1329.5,1329.4,1.9277122]
[1673345886967,10.12703222,1329.5,1329.4,23.86665619]
[1673345887131,11.25508371,1329.5,1329.4,23.9277122]
[1673345887328,10.12703222,1329.5,1329.4,23.9277122]
[1673345888008,11.25509122,1329.5,1329.4,23.9277122]
[1673345888219,10.12703222,1329.5,1329.4,23.9277122]
[1673345888625,11.25507757,1329.5,1329.4,23.9277122]
[1673345888832,10.12703222,1329.5,1329.4,23.9277122]
[1673345889041,11.25507535,1329.5,1329.4,23.9277122]
[1673345889258,11.25506539,1329.5,1329.4,25.05223796]
[1673345889588,10.12703222,1329.5,1329.4,27.8522855]
[1673345890109,10.12703222,1329.5,1329.4,35.3744755]
[1673345890421,10.12703222,1329.5,1329.4,48.85957891]
[1673345891263,10.12703222,1329.5,1329.4,41.33738891]
[1673345891475,10.12703222,1329.5,1329.4,35.3744755]
[1673345891844,10.12703222,1329.5,1329.4,26.72775974]
[1673345892054,10.12703222,1329.5,1329.4,23.9277122]
[1673345892297,11.25512554,1329.5,1329.4,23.9277122]
[1673345892486,10.12703222,1329.5,1329.4,23.9277122]
[1673345892699,11.25520876,1329.5,1329.4,23.9277122]
[1673345892942,11.25522346,1329.5,1329.4,23.9277122]
[1673345893155,10.12703222,1329.5,1329.4,23.92446016]
[1673345893341,11.25522107,1329.5,1329.4,23.92446016]
[1673345893554,12.94733914,1329.5,1329.4,23.92446016]
[1673345893764,10.12703222,1329.5,1329.4,23.92446016]
[1673345894160,11.2552226,1329.5,1329.4,23.92446016]
[1673345894520,11.25522247,1329.5,1329.4,23.92446016]
[1673345894688,10.12703222,1329.5,1329.4,23.92446016]
[1673345895108,11.25527304,1329.5,1329.4,23.92446016]
[1673345895422,11.25526809,1329.5,1329.4,1.92446016]
[1673345895631,10.12703222,1329.5,1329.4,1.86340415]
[1673345895887,10.12703222,1329.5,1329.4,2.98792991]
[1673345896264,11.25525796,1329.5,1329.4,2.98792991]
[1673345896484,11.25525776,1329.5,1329.4,2.98792991]
[1673345896828,11.25526913,1329.5,1329.4,24.98792991]
[1673345897045,1.71721808,1329.5,1329.4,25.04898592]
[1673345897207,1.71321808,1329.5,1329.4,35.37122346]
[1673345897663,2.84145291,1329.5,1329.4,35.37122346]
[1673345897941,2.84145276,1329.5,1329.4,35.37122346]
[1673345898200,2.84144341,1329.5,1329.4,35.37122346]
[1673345898515,2.84146957,1329.5,1329.4,34.2466977]
[1673345898673,2.84146811,1329.5,1329.4,26.7245077]
[1673345898883,1.71321808,1329.5,1329.4,26.7245077]
[1673345899144,2.84146784,1329.5,1329.4,27.84903346]
[1673345899310,2.84146528,1329.5,1329.4,27.84903346]
[1673345899521,1.71321808,1329.5,1329.4,27.84903346]
[1673345899725,2.84146596,1329.5,1329.4,27.84903346]
[1673345899985,1.71321808,1329.5,1329.4,27.84903346]
[1673345900295,2.84146797,1329.5,1329.4,27.84903346]
[1673345900510,2.84146764,1329.5,1329.4,5.84903346]
[1673345900680,1.71321808,1329.5,1329.4,3.04898592]
[1673345900884,2.84151147,1329.5,1329.4,2.98792991]
[1673345901089,1.71321808,1329.5,1329.4,24.98792991]
[1673345901343,1.71321808,1329.5,1329.4,26.7245077]
[1673345901516,1.71321808,1329.5,1329.4,27.84903346]
[1673345901932,2.84152612,1329.5,1329.4,26.7245077]
[1673345902158,1.71321808,1329.5,1329.4,26.7245077]
[1673345902403,2.84153745,1329.5,1329.4,26.7245077]
[1673345902594,4.53388124,1329.5,1329.4,26.7245077]
[1673345902773,1.71321808,1329.5,1329.4,26.7245077]
[1673345902986,2.84160161,1329.5,1329.4,26.7245077]
[1673345903188,2.84160175,1329.5,1329.4,4.7245077]
[1673345903433,3.40579373,1329.5,1329.4,1.86340415]
[1673345903659,1.71321808,1329.5,1329.4,1.86340415]
[1673345903871,4.53417806,1329.5,1329.4,1.86340415]
[1673345904085,1.71321808,1329.5,1329.4,1.86340415]
[1673345904608,4.53417701,1329.5,1329.4,1.86340415]
[1673345904814,1.71321808,1329.5,1329.4,1.86340415]
[1673345905305,1.71321808,1329.5,1329.4,23.86340415]
[1673345905519,1.71321808,1329.5,1329.4,26.7245077]
[1673345905770,2.84162557,1329.5,1329.4,26.7245077]
[1673345905941,1.71321808,1329.5,1329.4,27.84903346]
[1673345906130,2.84162601,1329.5,1329.4,26.7245077]
[1673345906340,1.71321808,1329.5,1329.4,26.7245077]
[1673345906572,2.84167087,1329.5,1329.4,26.7245077]
[1673345906776,2.84167089,1329.5,1329.4,26.7245077]
[1673345907498,5.66280934,1329.5,1329.4,26.7245077]
[1673345907730,3.97412881,1329.5,1329.4,26.7245077]
[1673345908074,5.66279124,1329.5,1329.4,26.7245077]
[1673345908291,4.53834689,1329.5,1329.4,26.7245077]
[1673345908448,3.97012233,1329.5,1329.4,26.7245077]
[1673345908822,3.97012459,1329.5,1329.4,23.92446016]
[1673345908983,5.6628052,1329.5,1329.4,23.92446016]
[1673345909194,5.66680551,1329.5,1329.4,23.92446016]
[1673345909419,2.84567089,1329.5,1329.4,23.92446016]
[1673345909637,5.66280569,1329.5,1329.4,23.92446016]
[1673345909823,2.84567089,1329.5,1329.4,23.92446016]
[1673345910038,2.84167089,1329.5,1329.4,23.92446016]
[1673345910236,5.66278062,1329.5,1329.4,23.92446016]
[1673345910449,2.84567089,1329.5,1329.4,23.92446016]
[1673345910660,2.84167089,1329.5,1329.4,23.92446016]
[1673345910997,4.53434276,1329.5,1329.4,23.92446016]
[1673345911225,2.84167089,1329.5,1329.4,23.92446016]
[1673345911439,5.66279077,1329.5,1329.4,23.92446016]
[1673345911650,4.53834284,1329.5,1329.4,23.92446016]
[1673345911960,7.91967941,1329.5,1329.4,23.92446016]
[1673345912139,6.79523879,1329.5,1329.4,23.92446016]
[1673345912344,9.05210447,1329.5,1329.4,23.92446016]
[1673345912616,9.05209764,1329.5,1329.4,23.92446016]
[1673345912825,7.92367158,1329.5,1329.4,23.92446016]
[1673345912978,11.30896569,1329.5,1329.4,23.92446016]
[1673345913195,9.61631859,1329.5,1329.4,23.92446016]
[1673345913402,12.43739769,1329.5,1329.4,23.92446016]
[1673345913668,12.43739799,1329.5,1329.4,23.92446016]
[1673345913868,9.61631859,1329.5,1329.4,23.92446016]
[1673345914400,12.43739326,1329.5,1329.4,23.92446016]
[1673345914711,9.61631859,1329.5,1329.4,23.92446016]
[1673345914882,13.56579989,1329.5,1329.4,23.92446016]
[1673345915092,10.7447418,1329.5,1329.4,23.92446016]
[1673345915339,12.4374032,1329.5,1329.4,23.92446016]
[1673345915564,13.5658076,1329.5,1329.4,23.92446016]
[1673345915875,12.43737356,1329.5,1329.4,23.92446016]
[1673345916023,11.87316814,1329.5,1329.4,23.92446016]
[1673345916237,11.8731733,1329.5,1329.4,23.92446016]
[1673345916484,12.43738924,1329.5,1329.4,23.92446016]
[1673345916696,14.74214573,1329.5,1329.4,23.92446016]
[1673345916870,13.04945917,1329.5,1329.4,12.92446016]
[1673345917428,14.74212805,1329.5,1329.4,9.92446016]
[1673345917654,13.04945917,1329.5,1329.4,9.92446016]
[1673345918193,15.87038583,1329.5,1329.4,9.92446016]
[1673345918502,15.8703858,1329.5,1329.4,9.92446016]
[1673345918708,15.87037939,1329.5,1329.4,9.92446016]
[1673345919031,15.87037957,1329.5,1329.4,9.92446016]
[1673345919223,13.04945917,1329.5,1329.4,9.92446016]
[1673345919428,14.74201175,1329.5,1329.4,9.92446016]
[1673345919621,14.74201191,1329.5,1329.4,9.92446016]
[1673345919826,14.17774596,1329.5,1329.4,9.92446016]
[1673345920165,14.17774093,1329.5,1329.4,9.92446016]
[1673345920357,14.17774346,1329.5,1329.4,9.92446016]
[1673345920552,15.87016995,1329.5,1329.4,9.92446016]
[1673345920916,14.74189936,1329.5,1329.4,9.92446016]
[1673345921493,13.04945917,1329.5,1329.4,9.92446016]
[1673345921706,15.87016689,1329.5,1329.4,9.92446016]
[1673345921910,13.04945917,1329.5,1329.4,9.92446016]
[1673345922379,14.17769251,1329.5,1329.4,9.92446016]
[1673345922541,15.87004249,1329.5,1329.4,9.92446016]
[1673345922751,15.8700171,1329.5,1329.4,9.92446016]
[1673345922988,15.87001709,1329.5,1329.4,9.92446016]
[1673345923178,13.04945917,1329.5,1329.4,9.92446016]
[1673345923383,20.57107917,1329.5,1329.4,9.92446016]
[1673345923704,23.39163707,1329.5,1329.4,9.92446016]
[1673345923922,21.69929147,1329.5,1329.4,9.92446016]
[1673345924138,22.26334432,1329.5,1329.4,9.92446016]
[1673345924347,21.69925594,1329.5,1329.4,9.92446016]
[1673345924802,22.26334434,1329.5,1329.4,9.92446016]
[1673345925020,21.69925596,1329.5,1329.4,9.92446016]
[1673345925187,20.57107917,1329.5,1329.4,9.92446016]
[1673345925549,20.57107917,1329.5,1329.4,1.92446016]
[1673345925723,20.57107917,1329.5,1329.4,1.86340415]
[1673345925936,15.86981214,1329.5,1329.3,2.98792991]
[1673345926149,10.7447418,1329.5,1329.4,1.86340415]
[1673345926491,10.7447418,1329.5,1329.4,8.0]
[1673345926670,13.56509483,1329.5,1329.4,9.92446016]
[1673345927020,10.7447418,1329.5,1329.4,18.92446016]
[1673345927187,13.5650949,1329.5,1329.4,18.92446016]
[1673345927394,10.7447418,1329.5,1329.4,18.92446016]
[1673345927964,12.43690996,1329.5,1329.4,18.92446016]
[1673345928176,11.87285391,1329.5,1329.4,18.92446016]
[1673345928339,12.43690997,1329.5,1329.4,18.92446016]
[1673345928916,11.87285147,1329.5,1329.4,18.92446016]
[1673345929126,16.9980238,1329.5,1329.4,18.92446016]
[1673345929336,19.25500828,1329.5,1329.4,17.06105601]
[1673345929913,16.9980238,1329.5,1329.4,17.06105601]
[1673345930352,19.25500828,1329.5,1329.4,17.06105601]
[1673345930999,23.05266892,1329.5,1329.4,17.06105601]
[1673345933425,20.79568444,1329.5,1329.4,17.0587071]
[1673345933637,23.05266892,1329.5,1329.4,17.0587071]
[1673345933814,20.79568444,1329.5,1329.4,17.0587071]
[1673345934020,20.79568444,1329.5,1329.4,0.0587071]
[1673345934253,20.79568444,1329.5,1329.2,23.82110804]
[1673345934608,20.79568444,1329.5,1329.3,1.86673854]
[1673345934753,1.12785552,1329.4,1329.3,1.86673854]
[1673345934953,1.12785644,1329.4,1329.3,1.86673854]
[1673345935162,18.55358032,1329.5,1329.3,1.86673854]
[1673345935425,1.12785416,1329.4,1329.3,1.86673854]
[1673345935641,16.29659584,1329.5,1329.4,17.0]
[1673345935859,16.23459584,1329.5,1329.4,0.0587071]
[1673345936021,18.48826774,1329.5,1329.4,9.0]
[1673345936232,24.65373236,1329.5,1329.4,9.0587071]
[1673345936519,36.49666434,1329.5,1329.4,10.0587071]
[1673345936640,50.97491986,1329.5,1329.4,10.0587071]
[1673345937005,50.97491986,1329.5,1329.4,0.0587071]
[1673345937323,50.97491986,1329.5,1329.2,6.16328316]
[1673345937484,50.97491986,1329.5,1329.4,7.0]
[1673345937485,39.65563922,1329.5,1329.4,7.0]
[1673345937697,39.65563922,1329.5,1329.4,7.0587071]
[1673345937938,41.91059744,1329.5,1329.4,7.0587071]
[1673345938117,41.91059744,1329.5,1329.4,0.0587071]
[1673345938327,41.91059744,1329.5,1329.3,20.0587071]
[1673345938534,1.69123163,1329.4,1329.3,20.0587071]
[1673345938761,1.69123163,1329.4,1329.3,0.0587071]
[1673345938969,1.69123163,1329.4,1329.2,0.10457606]
[1673345938970,10.23178198,1329.4,1329.2,0.10457606]
[1673345939207,10.23578198,1329.4,1329.2,17.10457606]
[1673345939536,10.23578198,1329.4,1329.2,17.16328316]
[1673345939708,1.12747445,1329.3,1329.2,17.16328316]